bitfinex/quotes_ETHUSD_20250925
["timestamp","ask_amount","ask_price","bid_price","bid_amount"]
[1758778241694,40.14875036,4040.8,4040.7,8.524]
[1758778243283,40.14875036,4040.8,4040.7,4.202]
[1758778243583,40.14875036,4040.8,4040.7,8.524]
[1758778243755,40.14875036,4040.8,4040.7,10.99881871]
[1758778244156,40.14875036,4040.8,4040.7,8.524]
[1758778245080,37.69864358,4040.8,4040.7,0.002]
[1758778245276,40.08170783,4040.8,4040.7,0.002]
[1758778245879,43.08170783,4040.8,4040.7,0.002]
[1758778246595,2.47481871,4040.7,4040.6,0.002]
[1758778246794,2.47494122,4040.5,4040.4,0.002]
[1758778247300,2.93314122,4040.5,4040.4,0.002]
[1758778247609,6.32122551,4040.5,4040.4,0.002]
[1758778247837,2.47518625,4040.1,4040.0,0.002]
[1758778250195,6.3215891,4040.0,4039.9,0.002]
[1758778252100,2.47573776,4039.2,4039.1,0.02]
[1758778252266,42.62448812,4039.2,4039.1,0.02]
[1758778252591,43.08168812,4039.2,4039.1,0.02]
[1758778253163,40.14875036,4039.2,4039.1,0.02]
[1758778254200,42.62448812,4039.2,4039.1,0.02]
[1758778254368,40.14875036,4039.2,4039.1,0.02]
[1758778254564,42.62448812,4039.2,4039.1,0.02]
[1758778254968,40.53693148,4039.2,4039.1,0.02]
[1758778255202,3.50443052,4039.2,4039.1,0.02]
[1758778255499,40.26499976,4039.2,4039.1,0.02]
[1758778255721,40.26499976,4039.2,4039.1,3.19739906]
[1758778255722,0.1162494,4039.2,4039.1,3.19739906]
[1758778256204,3.0,4039.8,4039.4,2.47557306]
[1758778256530,3.0,4039.8,4039.5,0.7016]
[1758778256731,3.0,4039.8,4039.5,3.17713936]
[1758778256926,3.0,4039.8,4039.6,3.17708271]
[1758778257100,3.0,4039.8,4039.7,0.7016]
[1758778257720,3.0,4039.8,4039.7,0.2394]
[1758778258016,3.0,4039.8,4039.7,0.7016]
[1758778258820,3.0,4039.8,4039.7,0.2394]
[1758778259198,3.0,4039.8,4039.5,4.317]
[1758778259391,3.0,4039.8,4039.5,4.5564]
[1758778259789,3.0,4039.8,4039.5,4.317]
[1758778260029,3.0,4039.8,4039.6,0.2394]
[1758778260213,3.0,4039.8,4039.5,4.7792]
[1758778260214,5.47537504,4039.8,4039.1,0.4822]
[1758778260421,40.14875036,4039.5,4039.4,4.317]
[1758778260610,40.14875036,4039.5,4039.4,4.5564]
[1758778260929,40.14875036,4039.5,4039.4,7.03201519]
[1758778261230,3.0,4039.4,4039.1,0.02]
[1758778261425,3.0,4039.4,4039.1,4.337]
[1758778262629,3.0,4039.4,4039.1,0.02]
[1758778262930,5.47563865,4039.4,4039.1,0.02]
[1758778263133,5.47573776,4039.2,4039.1,0.02]
[1758778263297,0.11807609,4039.9,4039.3,2.47567647]
[1758778263499,3.0,4039.8,4039.4,0.6992]
[1758778263720,3.0,4039.8,4039.5,0.6992]
[1758778264130,3.0,4039.8,4039.1,0.02]
[1758778264131,0.4562,4039.7,4039.1,0.02]
[1758778264335,2.47573776,4039.2,4039.1,0.02]
[1758778264507,3.0,4039.3,4039.1,0.02]
[1758778265309,2.47573776,4039.2,4039.1,0.02]
[1758778266726,5.93193776,4039.2,4039.1,0.02]
[1758778266925,5.93293776,4039.2,4039.1,0.02]
[1758778267536,3.0,4039.2,4039.1,0.02]
[1758778267854,9.79073776,4039.2,4039.1,0.02]
[1758778268534,10.24693776,4039.2,4039.1,0.02]
[1758778268749,41.34748768,4039.2,4039.1,0.02]
[1758778269658,40.89028768,4039.2,4039.1,0.02]
[1758778271049,41.34138768,4039.2,4039.1,0.02]
[1758778271221,41.34238768,4039.2,4039.1,0.02]
[1758778272637,42.13438768,4039.2,4039.1,0.02]
[1758778273059,2.47610558,4038.6,4038.5,0.002]
[1758778273221,37.36777812,4038.4,4038.3,0.002]
[1758778273551,37.36777812,4038.4,4038.0,0.002]
[1758778273552,2.47635084,4038.2,4038.0,0.002]
[1758778273727,9.78935084,4038.2,4038.0,0.002]
[1758778274053,10.24145084,4038.2,4038.0,0.002]
[1758778274265,11.03245084,4038.2,4038.0,0.002]
[1758778274485,6.26841217,4038.1,4038.0,0.002]
[1758778274635,6.72051217,4038.1,4038.0,0.002]
[1758778278473,3.0,4038.1,4038.0,0.002]
[1758778278675,31.09954992,4038.3,4038.0,0.7018]
[1758778278870,31.09954992,4038.3,4038.1,0.469]
[1758778279181,2.47641217,4038.1,4038.0,0.002]
[1758778281586,2.92751217,4038.1,4038.0,0.002]
[1758778282487,2.47641217,4038.1,4038.0,0.002]
[1758778284285,3.71951217,4038.1,4038.0,0.002]
[1758778285084,3.0,4038.1,4038.0,0.002]
[1758778285265,5.47641217,4038.1,4038.0,0.7018]
[1758778285657,5.47641217,4038.1,4038.0,0.2328]
[1758778286298,3.0,4038.1,4038.0,0.7018]
[1758778287367,5.47641217,4038.1,4038.0,0.7018]
[1758778287962,5.47641217,4038.1,4038.0,0.002]
[1758778288168,5.47641217,4038.1,4038.0,0.2328]
[1758778289297,9.78641217,4038.1,4038.0,0.2328]
[1758778289467,7.31,4038.1,4038.0,0.7018]
[1758778289797,3.0,4038.1,4038.0,0.7018]
[1758778290292,5.47641217,4038.1,4038.0,0.7018]
[1758778290667,5.47641217,4038.1,4038.0,0.002]
[1758778290862,3.0,4038.1,4038.0,0.2328]
[1758778291064,2.72357324,4039.7,4038.0,0.7018]
[1758778291065,0.001,4039.4,4038.0,0.7018]
[1758778291289,0.001,4039.4,4038.1,0.6998]
[1758778291290,2.47603373,4038.8,4038.1,0.6998]
[1758778291485,2.47603373,4038.8,4038.2,0.6998]
[1758778291697,2.47603373,4038.8,4038.3,0.6998]
[1758778291887,2.4760547,4038.7,4038.3,0.6998]
[1758778292202,3.0,4038.5,4038.4,0.6998]
[1758778292515,3.0,4038.5,4038.4,0.469]
[1758778293017,3.0,4038.5,4038.4,0.6998]
[1758778293921,3.0,4038.5,4038.4,0.2308]
[1758778294082,3.0,4038.5,4038.4,0.6998]
[1758778296500,5.47616689,4038.5,4038.4,0.2308]
[1758778296713,3.0,4038.5,4038.4,0.2308]
[1758778297607,3.0,4038.5,4038.2,4.2]
[1758778297813,33.57667059,4038.6,4038.1,0.469]
[1758778297814,0.001,4038.6,4038.3,1.19166289]
[1758778298021,2.47574075,4039.2,4038.4,0.6998]
[1758778298224,0.3892303,4039.4,4038.4,0.6998]
[1758778298533,0.3892303,4039.4,4038.5,3.20069]
[1758778298534,0.001,4039.4,4038.5,3.20069]
[1758778298712,0.13640456,4039.9,4038.6,7.14886599]
[1758778298914,0.021,4039.9,4038.7,1.51656044]
[1758778299115,0.021,4039.9,4039.8,2.47537006]
[1758778299619,0.021,4039.9,4039.8,3.17517006]
[1758778299823,0.021,4039.9,4039.8,4.37970788]
[1758778300347,0.021,4039.9,4039.8,7.48017006]
[1758778300573,0.021,4039.9,4039.8,3.17517006]
[1758778301249,0.021,4039.9,4039.8,7.48017006]
[1758778301765,0.021,4039.9,4039.8,3.17517006]
[1758778302050,0.021,4039.9,4039.8,7.48017006]
[1758778302226,0.021,4039.9,4039.8,8.68213245]
[1758778303839,0.021,4039.9,4039.8,4.37713245]
[1758778304040,0.021,4039.9,4039.8,9.56792376]
[1758778304352,0.021,4039.9,4039.8,9.54317006]
[1758778304861,0.021,4039.9,4039.8,3.17517006]
[1758778305170,0.021,4039.9,4039.8,9.54217006]
[1758778305614,0.021,4039.9,4039.8,9.54117006]
[1758778305818,0.021,4039.9,4039.8,10.74283245]
[1758778308144,0.021,4039.9,4039.8,8.67883245]
[1758778308625,0.021,4039.9,4039.8,10.74183245]
[1758778308824,0.021,4039.9,4039.8,9.54017006]
[1758778309645,1e-08,4039.9,4039.8,12.54017006]
[1758778309828,1e-08,4039.9,4039.8,13.33117006]
[1758778310554,0.001,4040.3,4039.8,13.33117006]
[1758778310555,0.001,4040.3,4040.2,6.67412498]
[1758778310722,0.001,4040.3,4040.2,14.76712498]
[1758778310923,0.001,4040.3,4040.2,17.36256223]
[1758778311450,0.001,4040.3,4040.2,13.06156223]
[1758778311658,0.001,4040.3,4040.2,19.42556223]
[1758778312473,0.001,4040.3,4040.2,16.42456223]
[1758778312976,0.001,4040.3,4040.2,10.06156223]
[1758778313180,0.001,4040.3,4040.2,16.42456223]
[1758778314870,0.001,4040.3,4040.2,10.73936223]
[1758778315068,0.001,4040.3,4040.2,14.80736223]
[1758778316473,0.4793,4040.3,4039.7,4.19899999]
[1758778316674,3.004,4040.2,4039.9,2.063]
[1758778316875,0.001,4040.3,4040.0,6.79795113]
[1758778317187,0.001,4040.3,4040.0,4.298]
[1758778317479,0.4743,4040.2,4040.1,4.298]
[1758778317681,0.4743,4040.2,4039.4,0.233]
[1758778317866,0.4743,4040.2,4039.8,2.47531617]
[1758778318183,0.4743,4040.1,4039.9,6.77330103]
[1758778318542,0.4743,4040.1,4039.9,4.298]
[1758778318743,0.4743,4040.1,4039.9,6.77330797]
[1758778319041,0.4743,4040.1,4039.8,2.47535435]
[1758778319394,0.001,4040.3,4039.7,2.47543041]
[1758778319701,0.001,4040.3,4039.8,6.77231293]
[1758778319915,0.001,4040.3,4039.9,4.297]
[1758778320088,0.4753,4040.3,4039.9,4.297]
[1758778320502,0.4743,4040.2,4039.9,4.297]
[1758778320811,0.4743,4040.2,4040.0,2.47524152]
[1758778321013,0.001,4040.3,4040.0,2.47524152]
[1758778321179,0.001,4040.3,4039.9,4.297]
[1758778321578,0.001,4040.3,4040.2,2.47512499]
[1758778321812,0.001,4040.3,4040.1,2.47517653]
[1758778322018,0.001,4040.3,4040.2,4.297]
[1758778322706,0.001,4040.3,4040.2,6.77212499]
[1758778322907,0.001,4040.3,4040.2,7.44982499]
[1758778323237,0.001,4040.3,4040.2,3.15282499]
[1758778323379,0.001,4040.3,4040.2,7.04007623]
[1758778323713,0.001,4040.3,4040.2,7.44882499]
[1758778324209,0.001,4040.3,4040.2,7.01532499]
[1758778324416,0.001,4040.3,4040.2,6.77112499]
[1758778325622,0.001,4040.3,4040.2,6.77012499]
[1758778325811,0.001,4040.3,4039.5,0.2442]
[1758778325987,3.4466,4040.2,4039.6,2.47548643]
[1758778326189,3.4506,4040.2,4039.5,4.19899999]
[1758778326507,3.4506,4040.2,4039.6,4.295]
[1758778326707,3.4466,4040.2,4039.6,6.77049128]
[1758778326922,3.4466,4040.2,4039.8,2.47532744]
[1758778327124,0.4506,4040.1,4039.9,4.295]
[1758778327492,3.0,4040.2,4039.9,6.77028894]
[1758778327925,0.001,4040.3,4040.2,2.47512499]
[1758778328135,0.001,4040.3,4040.2,9.53557623]
[1758778328309,0.001,4040.3,4040.2,9.51082499]
[1758778329931,0.001,4040.3,4040.2,10.30282499]
[1758778330535,1e-08,4040.6,4040.5,3.26694122]
[1758778330700,1e-08,4040.6,4040.5,8.83871784]
[1758778330901,1e-08,4040.6,4040.5,9.53851784]
[1758778331102,1e-08,4040.6,4040.5,9.66171784]
[1758778333320,1e-08,4040.6,4040.5,11.72371784]
[1758778333901,1e-08,4040.6,4040.5,5.36771784]
[1758778334230,1e-08,4040.6,4040.5,11.72371784]
[1758778334648,1e-08,4040.6,4040.5,10.10871784]
[1758778335621,1e-08,4040.6,4040.5,3.75271784]
[1758778335815,1e-08,4040.6,4040.5,4.53794122]
[1758778336023,0.45330001,4040.6,4040.1,4.19899999]
[1758778336234,0.45330001,4040.6,4040.2,4.292]
[1758778336235,0.4533,4040.5,4040.2,4.292]
[1758778336430,0.004,4040.5,4040.2,4.292]
[1758778336631,0.4493,4040.4,4040.2,6.76707578]
[1758778336831,0.4493,4040.4,4040.0,2.47524294]
[1758778336832,0.4493,4040.3,4040.0,2.063]
[1758778337062,0.4493,4040.3,4040.1,4.292]
[1758778337230,37.10934813,4040.4,4039.5,4.19899999]
[1758778337436,3.0,4039.8,4039.6,4.53847921]
[1758778337738,3.0,4039.8,4039.7,2.47543134]
[1758778338347,3.4533,4039.8,4039.7,4.291]
[1758778339554,3.4493,4039.8,4039.4,0.002]
[1758778339758,0.4533,4039.7,4039.5,4.291]
[1758778340056,3.0,4039.8,4039.5,4.291]
[1758778340838,3.0,4039.8,4039.6,2.47543848]
[1758778341050,3.0,4039.8,4039.7,4.291]
[1758778342432,3.0,4039.8,4039.7,6.76643134]
[1758778343029,3.0,4039.8,4039.7,4.291]
[1758778343429,0.004,4040.5,4039.7,4.291]
[1758778343430,1e-08,4040.6,4040.5,2.47494122]
[1758778343674,1e-08,4040.6,4040.5,7.46574122]
[1758778344052,1e-08,4040.6,4040.5,0.2358]
[1758778344252,1e-08,4040.6,4040.5,8.82794122]
[1758778344644,1e-08,4040.6,4040.5,9.06374122]
[1758778345456,1e-08,4040.6,4040.5,8.82794122]
[1758778346196,1e-08,4040.6,4040.5,10.68162139]
[1758778347349,1e-08,4040.6,4040.5,11.59682139]
[1758778347743,1e-08,4040.6,4040.5,5.24382139]
[1758778348079,1e-08,4040.6,4040.5,8.74282139]
[1758778348267,1e-08,4040.6,4040.5,9.98282139]
[1758778348467,1e-08,4040.6,4040.5,10.68262139]
[1758778349466,1e-08,4040.6,4040.5,3.86662139]
[1758778349672,1e-08,4040.6,4040.5,9.06474122]
[1758778349878,1e-08,4040.6,4040.5,9.52874122]
[1758778350990,1e-08,4040.6,4040.5,3.17674122]
[1758778351194,1e-08,4040.6,4040.5,9.06474122]
[1758778351397,1e-08,4040.6,4040.5,9.52874122]
[1758778351556,1e-08,4040.6,4040.5,10.72912139]
[1758778352373,1e-08,4040.6,4040.5,3.67732139]
[1758778352594,1e-08,4040.6,4040.5,9.52774122]
[1758778353364,1e-08,4040.6,4040.5,2.47694122]
[1758778353560,1e-08,4040.6,4040.5,6.76494122]
[1758778354807,1e-08,4040.6,4040.5,6.76394122]
[1758778355109,1e-08,4040.6,4040.5,2.47694122]
[1758778355314,1e-08,4040.6,4040.5,6.76394122]
[1758778356107,1e-08,4040.6,4040.5,6.99974122]
[1758778356266,1e-08,4040.6,4040.5,8.82694122]
[1758778357138,1e-08,4040.6,4040.5,6.76394122]
[1758778357335,1e-08,4040.6,4040.5,2.47694122]
[1758778357549,0.44930001,4040.6,4040.5,4.288]
[1758778357833,3.44930001,4040.6,4040.5,4.288]
[1758778358239,3.44930001,4040.6,4040.5,6.76294122]
[1758778359045,3.00000001,4040.6,4040.5,6.76294122]
[1758778359345,1e-08,4040.6,4040.5,6.76294122]
[1758778359555,1e-08,4040.6,4040.5,6.95874122]
[1758778359848,1e-08,4040.6,4040.5,7.42274122]
[1758778360557,1e-08,4040.6,4040.5,3.13674122]
[1758778360754,1e-08,4040.6,4040.5,9.51049063]
[1758778360954,1e-08,4040.6,4040.5,9.48574122]
[1758778361367,1e-08,4040.6,4040.5,3.13674122]
[1758778361523,1e-08,4040.6,4040.5,9.51049063]
[1758778361718,1e-08,4040.6,4040.5,9.48574122]
[1758778363550,1e-08,4040.6,4040.5,3.13674122]
[1758778363854,1e-08,4040.6,4040.5,9.50949063]
[1758778364043,1e-08,4040.6,4040.5,9.48474122]
[1758778364246,1e-08,4040.6,4040.5,3.13674122]
[1758778364437,1e-08,4040.6,4040.5,9.02074122]
[1758778364953,1e-08,4040.6,4040.5,2.43694122]
[1758778365256,1e-08,4040.6,4040.5,6.72094122]
[1758778366357,1e-08,4040.6,4040.5,6.72294122]
[1758778367774,1e-08,4040.6,4040.5,9.01284122]
[1758778367974,1e-08,4040.6,4040.5,10.62853044]
[1758778368570,1e-08,4040.6,4040.5,14.82753043]
[1758778368928,1e-08,4040.6,4040.5,14.36063043]
[1758778369270,1e-08,4040.6,4040.5,12.98394121]
[1758778369449,1e-08,4040.6,4040.5,6.63794121]
[1758778369763,1e-08,4040.6,4040.5,12.98294121]
[1758778370223,1e-08,4040.6,4040.5,10.92094121]
[1758778370430,0.46440001,4040.6,4040.5,0.002]
[1758778370629,5.94327997,4040.6,4040.5,0.002]
[1758778371042,2.47518625,4040.1,4040.0,0.002]
[1758778371245,42.58453438,4040.1,4040.0,0.002]
[1758778371666,43.05293438,4040.1,4040.0,0.002]
[1758778372774,40.57774813,4040.1,4040.0,0.002]
[1758778372981,40.57374813,4040.1,4040.0,0.002]
[1758778373276,43.05293438,4040.1,4040.0,0.002]
[1758778375170,40.57374813,4040.1,4040.0,0.002]
[1758778375672,43.04893438,4040.1,4040.0,0.002]
[1758778376034,40.57774813,4040.1,4040.0,0.002]
[1758778376292,40.57774813,4040.1,4039.4,2.47760132]
[1758778376293,2.4755539,4039.5,4039.4,0.002]
[1758778376561,2.4755539,4039.5,4038.5,2.203]
[1758778376562,2.47586036,4039.0,4038.5,2.203]
[1758778376774,42.58520849,4039.0,4038.5,2.203]
[1758778376972,43.04960849,4039.0,4038.5,2.203]
[1758778377334,43.05360849,4039.0,4038.5,0.002]
[1758778377568,43.05360849,4039.0,4038.5,4.284]
[1758778377770,43.05360849,4039.0,4038.5,0.002]
[1758778378473,47.33460849,4039.0,4038.5,0.002]
[1758778378675,2.47610558,4038.6,4038.5,0.002]
[1758778379025,5.94450558,4038.6,4038.5,0.002]
[1758778379627,3.0,4038.6,4038.5,0.002]
[1758778379975,6.24450558,4038.6,4038.5,0.002]
[1758778380151,3.7684,4038.6,4038.5,0.002]
[1758778380870,3.7644,4038.6,4038.5,0.002]
[1758778382068,10.52550558,4038.6,4038.5,0.002]
[1758778382278,2.47635084,4038.2,4038.1,0.02]
[1758778382450,46.86669897,4038.2,4038.1,0.02]
[1758778382972,40.10934813,4038.2,4038.1,0.02]
[1758778383875,42.58569897,4038.2,4038.1,0.02]
[1758778384077,43.04109897,4038.2,4038.1,0.02]
[1758778384279,43.34109897,4038.2,4038.1,0.02]
[1758778384476,40.86474813,4038.2,4038.1,0.02]
[1758778384679,43.34109897,4038.2,4038.1,0.02]
[1758778385185,42.88569897,4038.2,4038.1,0.02]
[1758778386298,3.0,4038.2,4038.1,0.7284]
[1758778386444,3.0,4038.2,4038.1,3.20481217]
[1758778386643,0.004,4039.3,4038.1,3.20481217]
[1758778386644,37.10934813,4039.4,4038.9,2.47591521]
[1758778386863,37.10934813,4039.4,4038.3,0.02476289]
[1758778387169,3.0,4038.6,4038.1,0.02]
[1758778387377,40.10934813,4038.2,4038.1,0.02]
[1758778387778,40.10934813,4038.2,4038.1,0.2537]
[1758778388079,3.0,4038.2,4038.1,0.02]
[1758778388397,3.0,4038.2,4038.1,3.20481217]
[1758778388580,3.0,4038.2,4038.1,0.7284]
[1758778388883,3.0,4038.2,4038.1,0.2537]
[1758778389088,3.0,4038.2,4038.1,0.02]
[1758778390106,3.4554,4038.2,4038.1,0.02]
[1758778390265,3.0,4038.2,4038.1,0.02]
[1758778390679,5.93445084,4038.2,4038.1,0.02]
[1758778391761,3.0,4038.2,4038.1,0.02]
[1758778392008,5.47635084,4038.2,4038.1,0.02]
[1758778392364,3.0,4038.2,4038.1,0.02]
[1758778394092,5.47635084,4038.2,4038.1,0.02]
[1758778394468,3.0,4038.2,4038.1,0.02]
[1758778394740,3.0,4038.2,4038.1,0.7361]
[1758778394935,3.0,4038.2,4038.1,0.02]
[1758778395303,5.47635084,4038.2,4038.1,0.02]
[1758778395934,5.93445084,4038.2,4038.1,0.02]
[1758778396138,5.93845084,4038.2,4038.1,0.02]
[1758778396533,3.0,4038.2,4038.1,0.02]
[1758778396733,5.47635084,4038.2,4038.1,0.02]
[1758778398638,5.93445084,4038.2,4038.1,0.02]
[1758778399203,5.93845084,4038.2,4038.1,0.022]
[1758778400408,3.0,4038.2,4038.1,0.7381]
[1758778400607,3.0,4038.2,4038.1,3.21451217]
[1758778400826,3.0,4038.2,4038.1,0.7381]
[1758778401021,3.722,4038.6,4038.1,3.21451217]
[1758778401221,0.001,4038.6,4038.2,0.7408635]
[1758778401422,0.001,4038.6,4038.1,0.022]
[1758778401622,31.10725667,4038.4,4038.1,0.022]
[1758778401826,31.10725667,4038.4,4038.1,0.2698]
[1758778402557,31.10725667,4038.4,4038.1,0.022]
[1758778404152,31.10725667,4038.4,4038.2,0.2478]
[1758778404354,0.001,4038.6,4038.3,0.2478]
[1758778404553,0.001,4038.6,4038.3,0.7161]
[1758778404826,3.001,4038.6,4038.4,0.2478]
[1758778405134,0.001,4038.6,4038.5,0.2478]
[1758778405338,0.001,4038.6,4038.5,0.7161]
[1758778408159,0.001,4038.6,4038.2,0.0247635]
[1758778408160,0.001,4038.6,4038.1,0.7381]
[1758778408323,3.0,4038.4,4038.1,0.4903]
[1758778408524,3.0,4038.4,4038.1,0.022]
[1758778408962,5.47635084,4038.2,4038.1,0.022]
[1758778409126,9.75335084,4038.2,4038.1,0.022]
[1758778409328,10.21545084,4038.2,4038.1,0.022]
[1758778413781,13.62145084,4038.2,4038.1,0.022]
[1758778414975,2.47641217,4038.1,4038.0,0.002]
[1758778415159,6.27241217,4038.1,4038.0,0.002]
[1758778415493,6.73051217,4038.1,4038.0,0.002]
[1758778419178,6.26841217,4038.1,4038.0,0.002]
[1758778419575,6.26853483,4037.9,4037.8,0.002]
[1758778419878,41.6507915,4037.9,4037.8,0.002]
[1758778420107,41.6507915,4037.9,4037.1,0.022]
[1758778420108,2.47682469,4037.5,4037.1,0.022]
[1758778420306,36.58415955,4037.3,4037.1,0.022]
[1758778420615,34.10725667,4037.3,4037.2,0.5498]
[1758778420816,34.10725667,4037.3,4037.2,0.302]
[1758778421310,34.10725667,4037.3,4037.2,1.0102]
[1758778421901,34.10725667,4037.3,4037.2,0.302]
[1758778422098,34.10725667,4037.3,4037.2,1.0102]
[1758778423604,38.38225667,4037.3,4037.2,1.0102]
[1758778423911,34.10725667,4037.3,4037.2,1.0102]
[1758778427313,0.001,4038.5,4037.2,1.78122865]
[1758778427498,0.001,4038.5,4038.1,2.47640592]
[1758778427678,0.001,4038.5,4038.1,2.47639755]
[1758778427877,0.001,4038.5,4038.4,2.4762282]
[1758778428400,0.001,4038.5,4038.4,3.1844282]
[1758778428708,0.001,4038.5,4038.4,3.75050222]
[1758778429777,0.001,4038.5,4038.4,10.1132645]
[1758778429986,0.001,4038.5,4038.4,10.08850222]
[1758778431010,0.001,4038.5,4038.4,3.75050222]
[1758778431210,0.001,4038.5,4038.4,10.1122645]
[1758778431403,0.001,4038.5,4038.4,10.08750222]
[1758778432942,0.001,4038.5,4038.4,3.75050222]
[1758778433240,0.001,4038.5,4038.4,3.1844282]
[1758778433412,0.001,4038.5,4038.4,2.4762282]
[1758778433812,0.001,4038.5,4038.4,2.7231282]
[1758778434044,0.001,4038.5,4038.4,3.1844282]
[1758778435340,0.001,4038.5,4038.4,2.7231282]
[1758778435513,0.001,4038.5,4038.4,3.1844282]
[1758778436007,0.001,4038.5,4038.4,3.20919048]
[1758778436213,0.001,4038.5,4038.4,4.20484073]
[1758778437438,0.001,4038.5,4038.4,10.51407845]
[1758778441819,0.001,4038.5,4037.7,2.47662303]
[1758778441820,0.001,4038.5,4038.3,2.47624141]
[1758778442018,0.001,4038.5,4038.1,0.09929389]
[1758778442250,0.001,4038.5,4038.0,6.74545881]
[1758778442549,0.001,4038.5,4038.4,2.4762282]
[1758778442849,0.001,4038.5,4038.4,6.7452282]
[1758778443580,0.001,4038.5,4038.4,8.81938503]
[1758778444835,0.001,4038.5,4038.4,13.01838502]
[1758778445226,0.001,4038.5,4038.4,13.81038502]
[1758778445453,0.001,4038.5,4038.4,13.93358502]
[1758778445681,1e-08,4039.0,4038.9,3.26792166]
[1758778445983,1e-08,4039.0,4038.9,10.29751409]
[1758778446280,1e-08,4039.0,4038.9,11.00611409]
[1758778450158,1e-08,4039.0,4038.9,11.00411409]
[1758778450372,0.001,4040.7,4040.5,2.47494122]
[1758778450571,0.001,4040.7,4040.5,6.76669063]
[1758778450873,0.001,4040.7,4040.5,6.74194122]
[1758778451278,0.001,4040.7,4040.5,7.86993778]
[1758778451477,0.001,4040.7,4040.5,8.53803778]
[1758778451682,0.001,4040.7,4040.5,9.33003778]
[1758778451987,0.001,4040.7,4040.5,5.06303778]
[1758778452191,0.001,4040.7,4040.5,11.39203778]
[1758778453116,0.001,4041.0,4040.9,3.26669623]
[1758778453258,0.001,4041.0,4040.9,8.13159062]
[1758778453458,0.001,4041.0,4040.9,8.77494366]
[1758778454269,0.001,4041.0,4040.9,4.50894366]
[1758778454467,0.001,4041.0,4040.9,10.83694366]
[1758778455886,0.001,4041.0,4040.9,10.39824366]
[1758778459005,37.11018503,4041.0,4040.8,2.063]
[1758778459177,0.001,4041.0,4040.9,4.264]
[1758778459378,0.001,4041.0,4040.9,6.76344319]
[1758778459583,0.001,4041.0,4040.9,6.73869623]
[1758778460109,0.001,4041.0,4040.9,2.47469623]
[1758778460268,0.001,4041.0,4040.9,8.82544319]
[1758778460468,0.001,4041.0,4040.9,8.80069623]
[1758778461805,0.001,4041.0,4040.9,2.47469623]
[1758778462102,0.001,4041.0,4040.9,8.82544319]
[1758778462320,0.001,4041.0,4040.9,8.80069623]
[1758778465276,0.001,4041.0,4040.9,2.47469623]
[1758778465512,0.001,4041.0,4040.9,8.79869623]
[1758778468519,0.001,4041.0,4040.9,9.46679623]
[1758778468893,0.001,4041.0,4040.9,9.02809623]
[1758778469520,0.001,4041.0,4040.9,12.99769622]
[1758778469691,0.001,4041.0,4040.9,14.8599572]
[1758778469913,0.001,4041.0,4040.9,15.6519572]
[1758778470093,1e-08,4041.5,4041.4,2.47439006]
[1758778470434,1e-08,4041.5,4041.4,10.95913395]
[1758778470723,1e-08,4041.5,4041.4,12.94585033]
[1758778471708,1e-08,4041.5,4041.4,12.27775033]
[1758778472698,1e-08,4041.5,4041.4,14.33875033]
[1758778473095,1e-08,4041.5,4041.4,6.67339005]
[1758778473296,0.45870001,4041.5,4041.4,4.19899999]
[1758778473599,37.57188504,4041.5,4041.4,10.93339005]
[1758778473994,37.57188504,4041.5,4041.4,8.45899999]
[1758778474200,1e-08,4041.5,4041.4,10.93339005]
[1758778475092,1e-08,4041.5,4041.4,6.67339005]
[1758778475093,0.45870001,4041.5,4041.4,6.67339005]
[1758778475298,0.46270001,4041.5,4041.4,10.93339005]
[1758778475524,0.45870001,4041.5,4041.4,10.93339005]
[1758778476429,0.45870001,4041.5,4041.4,6.67339005]
[1758778476635,0.45870001,4041.5,4041.4,10.93339005]
[1758778477020,1e-08,4041.5,4041.4,10.93339005]
[1758778479199,0.46270001,4041.5,4041.4,4.19899999]
[1758778479519,0.46270001,4041.5,4041.4,10.93239005]
[1758778480110,0.45870001,4041.5,4041.4,10.93239005]
[1758778481629,1e-08,4041.5,4041.4,10.93239005]
[1758778482023,1e-08,4041.5,4041.4,6.67339005]
[1758778482222,1e-08,4041.5,4041.4,10.93139005]
[1758778482426,0.43270001,4041.5,4041.4,10.93139005]
[1758778482625,1e-08,4041.5,4041.4,10.93139005]
[1758778487750,1e-08,4041.5,4041.4,6.73239006]
[1758778488704,15.2731335,4041.5,4041.4,2.47439006]
[1758778488959,15.2731335,4041.5,4041.4,6.73139006]
[1758778490377,13.25972672,4041.5,4040.9,0.002]
[1758778490659,24.54626698,4041.0,4040.9,0.002]
[1758778491178,24.98296698,4041.0,4040.9,4.258]
[1758778494146,37.1581026,4039.8,4039.7,2.47543134]
[1758778494368,37.1581026,4040.3,4040.0,2.47519023]
[1758778494551,2.47456503,4041.2,4040.5,2.47492524]
[1758778494552,37.1581026,4040.8,4040.5,2.47492524]
[1758778494865,37.1581026,4040.8,4040.5,4.256]
[1758778495269,37.5908026,4040.8,4040.5,4.256]
[1758778495779,37.5908026,4040.8,4039.1,0.265]
[1758778495780,0.4367,4040.7,4039.1,0.265]
[1758778496063,0.4367,4040.7,4039.8,2.47530944]
[1758778496064,37.1581026,4040.1,4039.8,2.47530944]
[1758778496262,37.1581026,4040.1,4039.9,2.695]
[1758778496454,37.1581026,4040.1,4039.9,2.47529602]
[1758778496657,37.1581026,4040.1,4039.3,3.0]
[1758778496858,37.1581026,4040.1,4039.5,3.0]
[1758778497055,37.1581026,4040.1,4040.0,2.47524752]
[1758778497230,37.1581026,4040.1,4039.8,2.4753635]